fUST/lending_fUST_20260216
["ID","MTS","AMOUNT","RATE_DAILY","PERIOD"]
[405609088,1771223487441,1500.0,0.00014368,2]
[405609089,1771223487508,2000.0,0.00014916,2]
[405609090,1771223487560,2500.0,0.00015464,2]
[405609091,1771223487664,1000.0,0.00013821,2]
[405609092,1771223490178,500.0,0.00013699,2]
[405609093,1771223490222,1111.64714998,0.00014247,2]
[405609094,1771223490545,4237.73023982,0.000156,2]
[405609095,1771223490569,88.68077459,0.000156,2]
[405609098,1771223495400,500.78529919,0.00013699,2]
[405609100,1771223496633,500.0,0.00013273,2]
[405609101,1771223496689,206.26919926,0.00013821,2]
[405609102,1771223498675,-855.10392395,0.00015864,2]
[405609103,1771223498704,-236.2443277,0.00015877,2]
[405609104,1771223498724,-855.10392395,0.0001589,2]
[405609105,1771223498736,-236.2443277,0.0001589,2]
[405609106,1771223498748,-154.04225434,0.0001589,2]
[405609109,1771223531531,500.0,0.00013699,2]
[405609110,1771223531581,754.60949401,0.00014247,2]
[405609112,1771223579623,22538.33600754,0.000135,2]
[405609113,1771223579651,25000.0,0.000135,2]
[405609114,1771223579679,1000.0,0.000135,2]
[405609115,1771223579708,528259.66399246,0.000135,2]
[405609216,1771223790799,500.0,0.00013699,2]
[405609217,1771223790829,504.14408874,0.00014247,2]
[405609238,1771224010234,500.0,0.00013699,2]
[405609239,1771224010297,232.4328373,0.00014247,2]
[405609240,1771224010898,500.0,0.00013273,2]
[405609241,1771224010946,1000.0,0.00013821,2]
[405609242,1771224011004,1500.0,0.00014368,2]
[405609243,1771224011061,2000.0,0.00014916,2]
[405609268,1771224127677,500.0,0.00013273,2]
[405609269,1771224127730,1000.0,0.00013821,2]
[405609270,1771224127785,804.22421811,0.00014368,2]
[405609298,1771224344259,-245.3220684,0.00015393,2]
[405609299,1771224344281,-237.16285676,0.00015429,2]
[405609300,1771224344302,-209.71639282,0.0001607,2]
[405609313,1771224438091,-690.62487848,0.0001607,2]
[405609314,1771224438127,-237.31714322,0.00016085,2]
[405609315,1771224438149,-171.50245203,0.000161,2]
[405609327,1771224448087,-329.62754797,0.000161,2]
[405609328,1771224448109,-277.90762351,0.000162,2]
[405609391,1771224502024,160.0,0.00014863,3]
[405609392,1771224566141,-160.0,0.00015127,4]
[405609393,1771224566162,-160.0,0.00015391,5]
[405609394,1771224566182,-160.0,0.00015655,6]
[405609395,1771224566202,-160.0,0.00015919,7]
[405609396,1771224566224,-160.0,0.00016183,8]
[405609397,1771224571256,186.4936043,0.00015443,2]
[405609398,1771224571277,641.81784564,0.00015443,2]
[405609399,1771224574159,-649.17032004,0.00015443,2]
[405609419,1771224631534,-643.0,0.00015443,2]
[405609420,1771224631556,-168.09576902,0.00015443,2]
[405609421,1771224631577,-4792.91094335,0.00016335,2]
[405609422,1771224631588,-300.0,0.00016434,2]
[405609423,1771224631597,-177.25916064,0.00016434,2]
[405609425,1771224631614,-122.74083936,0.00016434,2]
[405609426,1771224631623,-300.0,0.00016434,2]
[405609429,1771224631633,-300.0,0.00016434,2]
[405609431,1771224631642,-300.0,0.00016434,2]
[405609434,1771224631651,-300.0,0.00016434,2]
[405609437,1771224631660,-1200.0,0.00016434,2]
[405609439,1771224631670,-151.0,0.00016434,2]
[405609441,1771224631679,-250.0,0.00016434,2]
[405609443,1771224631689,-170.8169302,0.00016434,2]
[405609445,1771224631698,-157.51119157,0.00016434,2]
[405609447,1771224631707,-250.0,0.00016434,2]
[405609449,1771224631716,-250.0,0.00016434,2]
[405609451,1771224631725,-250.0,0.00016434,2]
[405609453,1771224631735,-260.22157162,0.00016434,2]
[405609455,1771224631744,-250.0,0.00016434,2]
[405609457,1771224631753,-250.0,0.00016434,2]
[405609459,1771224631762,-250.0,0.00016434,2]
[405609461,1771224631772,-250.0,0.00016434,2]
[405609463,1771224631781,-286.98887182,0.00016434,2]
[405609464,1771224631791,-250.0,0.00016434,2]
[405609467,1771224631800,-250.0,0.00016434,2]
[405609469,1771224631809,-250.0,0.00016434,2]
[405609471,1771224631818,-500.0,0.00016434,2]
[405609472,1771224631827,-214.52366785,0.00016434,2]
[405609475,1771224631836,-436.6054122,0.00016434,2]
[405609477,1771224631846,-500.0,0.00016434,2]
[405609478,1771224631855,-500.0,0.00016434,2]
[405609479,1771224631863,-500.0,0.00016434,2]
[405609480,1771224631872,-500.0,0.00016434,2]
[405609481,1771224631881,-250.0,0.00016434,2]
[405609482,1771224631889,-250.0,0.00016434,2]
[405609483,1771224631898,-250.0,0.00016434,2]
[405609484,1771224631907,-302.31386091,0.00016434,2]
[405609485,1771224631915,-362.0609578,0.00016434,2]
[405609486,1771224631924,-500.0,0.00016434,2]
[405609487,1771224631933,-250.0,0.00016434,2]
[405609488,1771224631942,-500.0,0.00016434,2]
[405609489,1771224631951,-271.18294023,0.00016434,2]
[405609490,1771224631962,-500.0,0.00016434,2]
[405609491,1771224631971,-500.0,0.00016434,2]
[405609492,1771224631979,-500.0,0.00016435,2]
[405609493,1771224631989,-500.0,0.00016435,2]
[405609494,1771224631997,-500.0,0.00016435,2]
[405609495,1771224632007,-500.0,0.00016435,2]
[405609496,1771224632015,-500.0,0.00016435,2]
[405609497,1771224632024,-180.99165726,0.00016435,2]
[405609498,1771224632033,-265.67462239,0.00016435,2]
[405609499,1771224632042,-500.0,0.00016435,2]
[405609500,1771224632051,-500.0,0.00016435,2]
[405609501,1771224632060,-500.0,0.00016435,2]
[405609502,1771224632069,-500.0,0.00016435,2]
[405609503,1771224632078,-500.0,0.00016435,2]
[405609504,1771224632087,-500.0,0.00016435,2]
[405609505,1771224632095,-500.0,0.00016435,2]
[405609506,1771224632104,-500.0,0.00016435,2]
[405609507,1771224632114,-500.0,0.00016435,2]
[405609509,1771224632123,-500.0,0.00016435,2]
[405609510,1771224632132,-375.5462179,0.00016435,2]
[405609511,1771224632141,-500.0,0.00016435,2]
[405609513,1771224632157,-500.0,0.00016435,2]
[405609515,1771224632177,-500.0,0.00016435,2]
[405609528,1771224632288,-500.0,0.00016435,2]
[405609530,1771224632300,-500.0,0.00016435,2]
[405609532,1771224632309,-500.0,0.00016435,2]
[405609534,1771224632319,-500.0,0.00016435,2]
[405609537,1771224632329,-500.0,0.00016435,2]
[405609539,1771224632338,-500.0,0.00016435,2]
[405609540,1771224632347,-500.0,0.00016435,2]
[405609543,1771224632357,-500.0,0.00016435,2]
[405609545,1771224632366,-500.0,0.00016435,2]
[405609547,1771224632376,-500.0,0.00016435,2]
[405609549,1771224632385,-500.0,0.00016435,2]
[405609551,1771224632393,-500.0,0.00016435,2]
[405609552,1771224632403,-500.0,0.00016435,2]
[405609555,1771224632412,-500.0,0.00016435,2]
[405609557,1771224632421,-500.0,0.00016435,2]
[405609559,1771224632431,-500.0,0.00016435,2]
[405609560,1771224632440,-500.0,0.00016435,2]
[405609563,1771224632449,-500.0,0.00016435,2]
[405609564,1771224632458,-500.0,0.00016435,2]
[405609567,1771224632468,-500.0,0.00016435,2]
[405609569,1771224632478,-500.0,0.00016435,2]
[405609571,1771224632488,-500.0,0.00016435,2]
[405609573,1771224632497,-500.0,0.00016435,2]
[405609575,1771224632507,-500.0,0.00016435,2]
[405609577,1771224632516,-500.0,0.00016435,2]
[405609579,1771224632525,-500.0,0.00016435,2]
[405609580,1771224632534,-500.0,0.00016435,2]
[405609583,1771224632543,-280.64960739,0.00016435,2]
[405609585,1771224632552,-500.0,0.00016435,2]
[405609587,1771224632562,-500.0,0.00016435,2]
[405609589,1771224632571,-500.0,0.00016435,2]
[405609590,1771224632580,-500.0,0.00016435,2]
[405609593,1771224632590,-391.86890028,0.00016435,2]
[405609595,1771224632600,-500.0,0.00016435,2]
[405609597,1771224632609,-500.0,0.00016435,2]
[405609599,1771224632619,-500.0,0.00016435,2]
[405609601,1771224632628,-500.0,0.00016435,2]
[405609602,1771224632637,-500.0,0.00016435,2]
[405609604,1771224632647,-500.0,0.00016435,2]
[405609606,1771224632656,-500.0,0.00016435,2]
[405609608,1771224632666,-500.0,0.00016435,2]
[405609611,1771224632677,-500.0,0.00016435,2]
[405609613,1771224632686,-500.0,0.00016435,2]
[405609615,1771224632695,-300.0,0.00016435,2]
[405609617,1771224632705,-500.0,0.00016438,2]
[405609619,1771224632714,-500.0,0.00016438,2]
[405609621,1771224632723,-500.0,0.00016438,2]
[405609623,1771224632732,-500.0,0.00016438,2]
[405609625,1771224632741,-500.0,0.00016438,2]
[405609627,1771224632750,-500.0,0.00016438,2]
[405609629,1771224632759,-500.0,0.00016438,2]
[405609631,1771224632769,-500.0,0.00016438,2]
[405609633,1771224632782,-500.0,0.00016438,2]
[405609635,1771224632792,-500.0,0.00016438,2]
[405609637,1771224632801,-500.0,0.00016438,2]
[405609639,1771224632811,-500.0,0.00016438,2]
[405609640,1771224632820,-500.0,0.00016438,2]
[405609643,1771224632829,-356.88134519,0.00016438,2]
[405609645,1771224632838,-500.0,0.00016438,2]
[405609647,1771224632850,-500.0,0.00016438,2]
[405609649,1771224632860,-500.0,0.00016438,2]
[405609651,1771224632869,-500.0,0.00016438,2]
[405609653,1771224632878,-500.0,0.00016438,2]
[405609655,1771224632887,-500.0,0.00016438,2]
[405609657,1771224632897,-775.41,0.00016438,2]
[405609659,1771224632906,-250.0,0.00016438,2]
[405609661,1771224632916,-2388.26,0.00016444,2]
[405609663,1771224632925,-500.0,0.00016444,2]
[405609665,1771224632934,-500.0,0.00016444,2]
[405609667,1771224632943,-730.72,0.00016444,2]
[405609669,1771224632952,-163.121759,0.00016445,2]
[405609671,1771224632961,-5101.81,0.00016445,2]
[405609673,1771224632970,-500.0,0.00016445,2]
[405609675,1771224632980,-160.0,0.00016447,9]
[405609677,1771224632989,-1000.0,0.00016449,2]
[405609679,1771224632999,-1000.0,0.00016449,2]
[405609681,1771224633008,-500.0,0.00016449,2]
[405609683,1771224633018,-668.4,0.00016449,2]
[405609685,1771224633027,-500.0,0.00016449,2]
[405609687,1771224633037,-2714.03,0.00016449,2]
[405609689,1771224633047,-1393.42,0.00016449,2]
[405609691,1771224633056,-500.0,0.00016449,2]
[405609693,1771224633066,-500.0,0.00016449,2]
[405609695,1771224633075,-500.0,0.00016449,2]
[405609697,1771224633084,-621.62,0.00016449,2]
[405609699,1771224633093,-500.0,0.00016449,2]
[405609701,1771224633103,-500.0,0.00016449,2]
[405609703,1771224633112,-500.0,0.00016449,2]
[405609705,1771224633122,-500.0,0.00016449,2]
[405609707,1771224633132,-500.0,0.00016449,2]
[405609709,1771224633141,-507.73645036,0.00016449,2]
[405609711,1771224633151,-500.0,0.00016449,2]
[405609714,1771224633161,-500.0,0.00016449,2]
[405609716,1771224633173,-4127.45,0.00016466,2]
[405609718,1771224633182,-571.35441401,0.00016466,2]
[405609720,1771224633192,-2001.9,0.00016475,2]
[405609722,1771224633203,-419.01963503,0.00016475,2]
[405609724,1771224633214,-500.0,0.00016475,2]
[405609726,1771224633224,-767.57,0.00016475,2]
[405609728,1771224633235,-187.33569958,0.00016475,2]
[405609730,1771224633244,-320.78955872,0.00016475,2]
[405609732,1771224633254,-653.65,0.00016475,2]
[405609734,1771224633263,-500.0,0.00016477,2]
[405609736,1771224633272,-500.0,0.00016477,2]
[405609738,1771224633282,-166.0,0.00016482,2]
[405609740,1771224633291,-500.0,0.00016483,2]
[405609742,1771224633301,-500.0,0.00016483,2]
[405609744,1771224633310,-500.0,0.00016483,2]
[405609746,1771224633319,-185.876,0.00016483,2]
[405609748,1771224633328,-204.86,0.00016623,2]
[405609750,1771224633337,-160.0,0.00016711,10]
[405609752,1771224633347,-500.0,0.00016712,2]
[405609754,1771224633356,-775.41,0.00016712,2]
[405609756,1771224633366,-2388.26,0.00016718,2]
[405609758,1771224633376,-500.0,0.00016718,2]
[405609760,1771224633386,-500.0,0.00016718,2]
[405609762,1771224633396,-730.72,0.00016718,2]
[405609764,1771224633405,-5101.81,0.00016719,2]
[405609766,1771224633416,-500.0,0.00016719,2]
[405609768,1771224633426,-1000.0,0.00016723,2]
[405609770,1771224633435,-1000.0,0.00016723,2]
[405609772,1771224633444,-668.4,0.00016723,2]
[405609774,1771224633455,-500.0,0.00016723,2]
[405609776,1771224633464,-2714.03,0.00016723,2]
[405609778,1771224633472,-1393.42,0.00016723,2]
[405609780,1771224633481,-500.0,0.00016723,2]
[405609782,1771224633491,-500.0,0.00016723,2]
[405609784,1771224633500,-621.62,0.00016723,2]
[405609786,1771224633510,-500.0,0.00016723,2]
[405609788,1771224633519,-500.0,0.00016723,2]
[405609790,1771224633529,-500.0,0.00016723,2]
[405609792,1771224633539,-500.0,0.00016723,2]
[405609794,1771224633549,-500.0,0.00016723,2]
[405609796,1771224633560,-500.0,0.00016723,2]
[405609798,1771224633569,-500.0,0.00016723,2]
[405609800,1771224633578,-800.0,0.00016737,2]
[405609802,1771224633588,-4127.45,0.0001674,2]
[405609804,1771224633597,-168.0,0.00016744,2]
[405609806,1771224633606,-2001.9,0.00016749,2]
[405609808,1771224633615,-500.0,0.00016749,2]
[405609810,1771224633625,-767.57,0.00016749,2]
[405609812,1771224633634,-653.65,0.00016749,2]
[405609814,1771224633643,-157.449,0.0001675,2]
[405609816,1771224633654,-500.0,0.00016751,2]
[405609818,1771224633663,-500.0,0.00016751,2]
[405609820,1771224633672,-309.95829221,0.00016755,2]
[405609822,1771224633681,-342.0555435,0.00016755,2]
[405609824,1771224633691,-200.49774721,0.00016755,2]
[405609826,1771224633700,-257.93277933,0.00016755,2]
[405609828,1771224633710,-229.14028253,0.00016755,2]
[405609830,1771224633720,-357.67365975,0.00016755,2]
[405609832,1771224633729,-500.0,0.00016756,2]
[405609834,1771224633738,-500.0,0.00016756,2]
[405609836,1771224633748,-500.0,0.00016757,2]
[405609838,1771224633758,-551.7800001,0.00016757,2]
[405609841,1771224633768,-500.0,0.00016757,2]
[405609842,1771224633777,-212.56884957,0.00016803,2]
[405609844,1771224633786,-198.56433431,0.00016803,2]
[405609847,1771224633796,-800.0,0.00016831,2]
[405609848,1771224633805,-904.70043999,0.00016843,2]
[405609850,1771224633815,-6484.6868289,0.00016885,2]
[405609852,1771224633824,-500.0,0.00016924,2]
[405609855,1771224633835,-500.0,0.00016948,2]
[405609857,1771224633844,-160.0,0.00016975,11]
[405609859,1771224633854,-2918.93,0.0001698,3]
[405609860,1771224633864,-1459.46,0.0001698,3]
[405609863,1771224633873,-729.73,0.0001698,3]
[405609865,1771224633883,-364.87,0.0001698,3]
[405609866,1771224633892,-182.43,0.0001698,3]
[405609869,1771224633902,-547.32,0.0001698,3]
[405609871,1771224633911,-500.0,0.00016986,2]
[405609872,1771224633920,-775.41,0.00016986,2]
[405609875,1771224633930,-36128.28457103,0.0001699,2]
[405610234,1771224637802,-500.0,0.00016434,2]
[405610235,1771224637812,-500.0,0.00016434,2]
[405610237,1771224637821,-500.0,0.00016434,2]
[405610239,1771224637830,-500.0,0.00016434,2]
[405610241,1771224637839,-500.0,0.00016434,2]
[405610243,1771224637848,-500.0,0.00016434,2]
[405610245,1771224637857,-500.0,0.00016434,2]
[405610247,1771224637866,-521.2716098,0.00016434,2]
[405610249,1771224637875,-56936.18089735,0.0001699,2]
[405610251,1771224637885,-2388.26,0.00016992,2]
[405610253,1771224637894,-500.0,0.00016992,2]
[405610255,1771224637903,-500.0,0.00016992,2]
[405610257,1771224637913,-730.72,0.00016992,2]
[405610259,1771224637922,-5101.81,0.00016993,2]
[405610260,1771224637931,-500.0,0.00016993,2]
[405610262,1771224637941,-500.0,0.00016997,2]
[405610264,1771224637951,-1000.0,0.00016997,2]
[405610266,1771224637960,-1000.0,0.00016997,2]
[405610268,1771224637970,-668.4,0.00016997,2]
[405610270,1771224637979,-500.0,0.00016997,2]
[405610272,1771224637988,-2714.03,0.00016997,2]
[405610273,1771224637998,-1393.42,0.00016997,2]
[405610275,1771224638008,-500.0,0.00016997,2]
[405610277,1771224638018,-500.0,0.00016997,2]
[405610279,1771224638027,-621.62,0.00016997,2]
[405610281,1771224638037,-500.0,0.00016997,2]
[405610283,1771224638047,-500.0,0.00016997,2]
[405610285,1771224638056,-500.0,0.00016997,2]
[405610287,1771224638065,-500.0,0.00016997,2]
[405610289,1771224638074,-500.0,0.00016997,2]
[405610291,1771224638084,-500.0,0.00016997,2]
[405610293,1771224638093,-373.8824408,0.00017,2]
[405610294,1771224638102,-290.70057583,0.00017,2]
[405610296,1771224638111,-4127.45,0.00017014,2]
[405610298,1771224638121,-2001.9,0.00017023,2]
[405610300,1771224638130,-500.0,0.00017023,2]
[405610302,1771224638140,-767.57,0.00017023,2]
[405610304,1771224638150,-653.65,0.00017023,2]
[405610306,1771224638160,-174.55473531,0.00017024,2]
[405610308,1771224638173,-500.0,0.00017024,2]
[405610310,1771224638183,-500.0,0.00017025,2]
[405610312,1771224638192,-500.0,0.00017025,2]
[405610314,1771224638201,-180.2037912,0.00017028,2]
[405610316,1771224638212,-500.0,0.00017031,2]
[405610318,1771224638222,-500.0,0.00017031,2]
[405610320,1771224638231,-500.0,0.00017031,2]
[405610322,1771224638243,-1312.17889603,0.00017054,2]
[405610323,1771224638252,-296.0,0.00017076,2]
[405610325,1771224638263,-500.0,0.000171,2]
[405610327,1771224638272,-299.37499563,0.00017105,2]
[405610329,1771224638282,-3096.412379,0.00017132,2]
[405610331,1771224638292,-336.0,0.00017138,2]
[405610333,1771224638300,-168.0,0.00017206,2]
[405610335,1771224638309,-168.0,0.00017218,2]
[405610336,1771224638319,-160.0,0.00017239,12]
[405610338,1771224638328,-500.0,0.0001726,2]
[405610340,1771224638337,-775.41,0.0001726,2]
[405610342,1771224638346,-2388.26,0.00017266,2]
[405610344,1771224638355,-174.51086379,0.00017266,2]
[405610346,1771224638365,-500.0,0.00017266,2]
[405610348,1771224638374,-730.72,0.00017266,2]
[405610350,1771224638384,-5101.81,0.00017267,2]
[405610363,1771224638507,-250.49909363,0.00017267,2]
[405610365,1771224638518,-500.0,0.00017271,2]
[405610367,1771224638528,-1000.0,0.00017271,2]
[405610369,1771224638538,-1000.0,0.00017271,2]
[405610371,1771224638547,-668.4,0.00017271,2]
[405610373,1771224638557,-254.61285212,0.00017271,2]
[405610375,1771224638566,-2714.03,0.00017271,2]
[405610377,1771224638576,-1393.42,0.00017271,2]
[405610379,1771224638586,-500.0,0.00017271,2]
[405610381,1771224638596,-500.0,0.00017271,2]
[405610383,1771224638605,-621.62,0.00017271,2]
[405610384,1771224638615,-500.0,0.00017271,2]
[405610386,1771224638624,-500.0,0.00017271,2]
[405610388,1771224638633,-500.0,0.00017271,2]
[405610390,1771224638643,-500.0,0.00017271,2]
[405610392,1771224638652,-500.0,0.00017271,2]
[405610394,1771224638661,-500.0,0.00017271,2]
[405610396,1771224638671,-4127.45,0.00017288,2]
[405610398,1771224638680,-2001.9,0.00017297,2]
[405610399,1771224638690,-500.0,0.00017297,2]
[405610401,1771224638700,-767.57,0.00017297,2]
[405610403,1771224638709,-653.65,0.00017297,2]
[405610405,1771224638719,-500.0,0.00017298,2]
[405610407,1771224638728,-500.0,0.00017299,2]
[405610409,1771224638738,-500.0,0.00017299,2]
[405610411,1771224638747,-151.0,0.000173,2]
[405610413,1771224638757,-500.0,0.00017305,2]
[405610415,1771224638767,-500.0,0.00017305,2]
[405610417,1771224638778,-602.45844016,0.00017305,2]
[405610419,1771224638787,-208.0,0.00017309,2]
[405610420,1771224638796,-159.93716749,0.0001738,2]
[405610422,1771224638806,-151.0,0.000174,2]
[405610424,1771224638815,-724.0,0.00017445,2]
[405610426,1771224638825,-188.327,0.00017445,2]
[405610427,1771224638834,-168.0,0.00017474,2]
[405610429,1771224638844,-160.0,0.00017503,13]
[405610431,1771224638854,-166.84810885,0.00017503,5]
[405610433,1771224638863,-382.62392922,0.00017503,2]
[405610435,1771224638873,-357.41580176,0.00017503,2]
[405610437,1771224638882,-500.0,0.00017534,2]
[405610439,1771224638891,-775.41,0.00017534,2]
[405610441,1771224638899,-151.0,0.00017534,2]
[405610443,1771224638908,-151.0,0.00017534,2]
[405610445,1771224638917,-151.0,0.00017534,2]
[405610447,1771224638926,-151.0,0.00017534,2]
[405610449,1771224638936,-151.0,0.00017534,2]
[405610451,1771224638945,-151.0,0.00017534,2]
[405610452,1771224638953,-272.3993,0.00017534,2]
[405610454,1771224638963,-39238.82134245,0.0001754,2]
[405610456,1771224638972,-2388.26,0.0001754,2]
[405610457,1771224638981,-500.0,0.0001754,2]
[405610458,1771224638991,-730.72,0.0001754,2]
[405610459,1771224639000,-5101.81,0.00017541,2]
[405610460,1771224639010,-500.0,0.00017545,2]
[405610461,1771224639020,-1000.0,0.00017545,2]
[405610462,1771224639030,-1000.0,0.00017545,2]
[405610463,1771224639040,-668.4,0.00017545,2]
[405610464,1771224639050,-2714.03,0.00017545,2]
[405610465,1771224639059,-1393.42,0.00017545,2]
[405610466,1771224639070,-500.0,0.00017545,2]
[405610467,1771224639080,-500.0,0.00017545,2]
[405610468,1771224639089,-621.62,0.00017545,2]
[405610469,1771224639098,-500.0,0.00017545,2]
[405610470,1771224639107,-500.0,0.00017545,2]
[405610471,1771224639116,-500.0,0.00017545,2]
[405610472,1771224639125,-500.0,0.00017545,2]
[405610473,1771224639135,-500.0,0.00017545,2]
[405610474,1771224639144,-500.0,0.00017545,2]
[405610475,1771224639153,-4127.45,0.00017562,2]
[405610476,1771224639166,-2001.9,0.00017571,2]
[405610477,1771224639175,-500.0,0.00017571,2]
[405610479,1771224639185,-767.57,0.00017571,2]
[405610481,1771224639194,-653.65,0.00017571,2]
[405610483,1771224639203,-500.0,0.00017573,2]
[405610485,1771224639212,-447.05127426,0.00017573,2]
[405610487,1771224639221,-500.0,0.00017579,2]
[405610489,1771224639231,-500.0,0.00017579,2]
[405610491,1771224639240,-168.0,0.00017583,2]
[405610494,1771224639249,-168.0,0.00017589,2]
[405610496,1771224639258,-2147.63066024,0.000176,2]
[405610498,1771224639268,-151.0,0.000176,2]
[405610500,1771224639277,-168.0,0.00017614,2]
[405610502,1771224639286,-168.0,0.00017624,2]
[405610504,1771224639295,-168.0,0.00017629,2]
[405610506,1771224639304,-235.43547475,0.0001763,17]
[405610508,1771224639313,-168.0,0.0001764,2]
[405610510,1771224639322,-323.24625403,0.00017673,17]
[405610512,1771224639331,-168.0,0.00017714,2]
[405610514,1771224639341,-249.0,0.00017769,2]
[405610516,1771224639350,-176230.204692,0.000178,2]
[405610518,1771224639359,-83253.14397708,0.000178,2]
[405610520,1771224639368,-151.0,0.000178,2]
[405610522,1771224639377,-500.0,0.00017808,2]
[405610524,1771224639386,-775.41,0.00017808,2]
[405610527,1771224639397,-150.94385673,0.00017808,2]
[405610529,1771224639406,-150.0,0.00017808,2]
[405610531,1771224639416,-2388.26,0.00017814,2]
[405610533,1771224639425,-223.77611552,0.00017814,2]
[405610535,1771224639434,-730.72,0.00017814,2]
[405610537,1771224639443,-5101.81,0.00017815,2]
[405610539,1771224639452,-500.0,0.00017819,2]
[405610541,1771224639463,-1000.0,0.00017819,2]
[405610543,1771224639472,-1000.0,0.00017819,2]
[405610545,1771224639481,-668.4,0.00017819,2]
[405610547,1771224639491,-2714.03,0.00017819,2]
[405610549,1771224639499,-1393.42,0.00017819,2]
[405610551,1771224639509,-500.0,0.00017819,2]
[405610553,1771224639519,-500.0,0.00017819,2]
[405610554,1771224639528,-621.62,0.00017819,2]
[405610555,1771224639537,-500.0,0.00017819,2]
[405610556,1771224639547,-500.0,0.00017819,2]
[405610557,1771224639557,-376.167094,0.00017819,2]
[405610558,1771224639566,-500.0,0.00017819,2]
[405610559,1771224639576,-500.0,0.00017819,2]
[405610560,1771224639585,-500.0,0.00017819,2]
[405610561,1771224639594,-4127.45,0.00017836,2]
[405610562,1771224639603,-2001.9,0.00017845,2]
[405610563,1771224639613,-500.0,0.00017845,2]
[405610564,1771224639622,-767.57,0.00017845,2]
[405610565,1771224639631,-653.65,0.00017845,2]
[405610566,1771224639641,-500.0,0.00017847,2]
[405610567,1771224639651,-500.0,0.00017853,2]
[405610568,1771224639661,-500.0,0.00017853,2]
[405610569,1771224639671,-3096.412379,0.00017853,2]
[405610570,1771224639680,-510.13,0.00017855,2]
[405610571,1771224639690,-510.13,0.00017855,2]
[405610572,1771224639700,-510.13,0.00017855,2]
[405610573,1771224639709,-510.13,0.00017855,2]
[405610574,1771224639719,-510.13,0.00017855,2]
[405610575,1771224639728,-510.13,0.00017855,2]
[405610576,1771224639738,-510.13,0.00017855,2]
[405610577,1771224639747,-510.13,0.00017855,2]
[405610578,1771224639756,-510.13,0.00017855,2]
[405610579,1771224639765,-510.13,0.00017855,2]
[405610580,1771224639775,-510.13,0.00017855,2]
[405610581,1771224639784,-510.13,0.00017855,2]
[405610582,1771224639793,-510.13,0.00017855,2]
[405610583,1771224639802,-510.13,0.00017855,2]
[405610584,1771224639811,-510.13,0.00017855,2]
[405610585,1771224639820,-510.13,0.00017855,2]
[405610586,1771224639829,-510.13,0.00017855,2]
[405610587,1771224639839,-510.13,0.00017855,2]
[405610588,1771224639848,-510.13,0.00017855,2]
[405610589,1771224639856,-510.13,0.00017855,2]
[405610590,1771224639866,-510.13,0.00017855,2]
[405610591,1771224639875,-510.13,0.00017855,2]
[405610592,1771224639884,-510.13,0.00017855,2]
[405610593,1771224639893,-510.13,0.00017855,2]
[405610594,1771224639903,-673.98,0.00017855,2]